bitfinex-derivatives/quotes_BNBF0:USTF0_20250331
["timestamp","ask_amount","ask_price","bid_price","bid_amount"]
[1743392746855,0.30612257,601.16,599.9,0.33338889]
[1743392747052,0.33269566,601.15,599.9,0.33338889]
[1743392747351,0.30612257,601.14,599.9,0.33338889]
[1743392747557,0.63882377,601.14,599.9,0.33338889]
[1743392747756,0.30612257,601.13,599.9,0.33338889]
[1743392748758,0.3327012,601.14,599.9,0.33338889]
[1743392748954,0.3061562,601.13,599.9,0.33338889]
[1743392749152,0.3061562,601.12,599.9,0.33338889]
[1743392749355,0.3061562,601.11,599.9,0.33338889]
[1743392749554,0.3061562,601.1,599.9,0.33338889]
[1743392749753,0.3061562,601.09,599.9,0.33338889]
[1743392750056,0.3061562,601.08,599.9,0.33338889]
[1743392750257,0.3061562,601.07,599.9,0.33338889]
[1743392750454,0.3061562,601.06,599.9,0.33338889]
[1743392750957,0.548,601.05,599.9,0.33338889]
[1743392751257,0.3061562,601.04,599.9,0.33338889]
[1743392753258,0.28999879,601.03,599.9,0.33338889]
[1743392753459,0.3061562,601.02,599.9,0.33338889]
[1743392754362,0.28999879,601.03,599.9,0.33338889]
[1743392754561,0.30619805,601.02,599.9,0.33338889]
[1743392755463,0.548,601.05,599.9,0.33338889]
[1743392755661,0.29003746,601.01,599.9,0.33338889]
[1743392755862,0.30620239,601.0,599.9,0.33338889]
[1743392757867,0.29003746,601.01,599.9,0.33338889]
[1743392758165,0.30622187,601.0,599.9,0.33338889]
[1743392758362,0.30622187,600.99,599.9,0.33338889]
[1743392760463,0.33278977,600.98,599.9,0.33338889]
[1743392760661,0.30622187,600.97,599.9,0.33338889]
[1743392761166,0.33280085,600.96,599.9,0.33338889]
[1743392761367,0.30622187,600.95,599.9,0.33338889]
[1743392762466,0.63902825,600.95,599.9,0.33338889]
[1743392762763,0.30622187,600.94,599.9,0.33338889]
[1743392766374,0.30622187,600.94,598.49,2.53489445]
[1743392766574,0.332823,600.92,599.29,0.2900701]
[1743392766775,0.30622187,600.91,599.3,0.33372267]
[1743392767075,0.33283962,600.89,599.3,0.33372267]
[1743392767275,0.30622187,600.88,599.3,0.33372267]
[1743392767474,0.33285623,600.86,599.3,0.33372267]
[1743392767774,0.30622187,600.85,599.3,0.33372267]
[1743392767976,0.63908918,600.84,599.3,0.33372267]
[1743392768175,0.63909472,600.83,599.3,0.33372267]
[1743392768375,0.63910026,600.82,599.3,0.33372267]
[1743392768570,0.63910581,600.81,599.3,0.33372267]
[1743392768770,0.63911135,600.8,599.3,0.33372267]
[1743392768969,0.63911689,600.79,599.3,0.33372267]
[1743392769170,0.63912243,600.78,599.3,0.33372267]
[1743392769374,0.63912797,600.77,599.3,0.33372267]
[1743392769575,0.63913351,600.76,599.3,0.33372267]
[1743392769772,0.63913905,600.75,599.3,0.33372267]
[1743392769977,0.63914459,600.74,599.3,0.33372267]
[1743392770175,0.63915014,600.73,599.3,0.33372267]
[1743392770375,0.63915568,600.72,599.3,0.33372267]
[1743392770579,0.63916122,600.71,599.3,0.33372267]
[1743392770780,0.63916676,600.7,599.3,0.33372267]
[1743392770981,0.63917231,600.69,599.3,0.33372267]
[1743392771181,0.33295598,600.68,599.3,0.33372267]
[1743392771482,0.30622187,600.67,599.3,0.33372267]
[1743392771981,0.33295598,600.68,599.3,0.33372267]
[1743392772280,0.30642104,600.67,599.3,0.33372267]
[1743392773483,0.30642104,600.67,599.31,0.28895536]
[1743392773680,0.33295598,600.68,599.3,0.33372267]
[1743392773877,0.30631102,600.67,599.31,0.28890785]
[1743392774081,0.30631102,600.67,599.33,0.33370597]
[1743392774282,0.30631102,600.67,599.34,0.28890785]
[1743392775184,0.30631102,600.67,599.36,0.33368926]
[1743392775378,0.30631102,600.67,599.37,0.28890785]
[1743392775579,0.30631102,600.67,599.39,0.33367256]
[1743392775785,0.30631102,600.67,599.4,0.28890785]
[1743392775979,0.30631102,600.67,599.42,0.33365586]
[1743392776184,0.30631102,600.67,599.43,0.28890785]
[1743392776380,0.30631102,600.67,599.45,0.33363916]
[1743392776582,0.30631102,600.67,599.46,0.28890785]
[1743392776786,0.30631102,600.67,599.47,0.33362803]
[1743392776984,0.30631102,600.67,599.48,0.28890785]
[1743392777180,0.30631102,600.67,599.49,0.3336169]
[1743392777380,0.59632318,600.66,599.49,0.3336169]
[1743392777580,0.30627363,600.65,599.49,0.3336169]
[1743392779286,0.30627363,600.67,599.49,0.3336169]
[1743392780382,0.29024913,600.66,599.49,0.3336169]
[1743392780584,0.30627363,600.65,599.49,0.3336169]
[1743392780980,0.30627363,600.64,599.49,0.3336169]
[1743392781186,0.30627363,600.63,599.49,0.3336169]
[1743392781387,0.30627363,600.62,599.49,0.3336169]
[1743392781584,0.30627363,600.61,599.49,0.3336169]
[1743392781789,0.30627363,600.65,599.49,0.3336169]
[1743392781984,0.30627363,600.64,599.49,0.3336169]
[1743392782187,0.30627363,600.63,599.49,0.3336169]
[1743392782387,0.30627363,600.62,599.49,0.3336169]
[1743392782587,0.30627363,600.61,599.49,0.3336169]
[1743392782788,0.30627363,600.6,599.49,0.3336169]
[1743392782985,0.30642263,600.59,599.49,0.3336169]
[1743392783189,0.30642263,600.58,599.49,0.3336169]
[1743392785388,0.30642263,600.67,599.49,0.3336169]
[1743392785592,0.63938969,600.66,599.49,0.3336169]
[1743392785792,0.63939524,600.65,599.49,0.3336169]
[1743392785988,0.63940078,600.64,599.49,0.3336169]
[1743392786187,0.63940633,600.63,599.49,0.3336169]
[1743392786487,0.30642263,600.62,599.49,0.3336169]
[1743392786694,0.30642263,600.61,599.49,0.3336169]
[1743392786887,0.30642263,600.6,599.49,0.3336169]
[1743392787090,0.3329837,600.63,599.49,0.3336169]
[1743392787387,0.30642861,600.62,599.49,0.3336169]
[1743392787587,0.30642861,600.61,599.49,0.3336169]
[1743392787792,0.30642861,600.6,599.49,0.3336169]
[1743392787986,0.30642861,600.59,599.49,0.3336169]
[1743392788190,0.30642861,600.58,599.49,0.3336169]
[1743392788693,0.30642861,600.57,599.49,0.3336169]
[1743392788893,0.30642861,600.62,599.49,0.3336169]
[1743392789290,0.29025639,600.56,599.49,0.3336169]
[1743392789493,0.30642861,600.55,599.49,0.3336169]
[1743392790094,0.29025639,600.56,599.49,0.3336169]
[1743392790294,0.30637151,600.55,599.49,0.3336169]
[1743392791395,0.30637151,600.62,599.49,0.3336169]
[1743392791598,0.30637151,600.61,599.49,0.3336169]
[1743392791792,0.30637151,600.6,599.49,0.3336169]
[1743392791988,0.30637151,600.62,599.49,0.3336169]
[1743392792194,0.30637151,600.61,599.49,0.3336169]
[1743392792490,0.29024066,600.59,599.49,0.3336169]
[1743392792694,0.30637151,600.58,599.49,0.3336169]
[1743392793995,0.30637151,600.57,599.49,0.3336169]
[1743392794196,0.30637151,600.56,599.49,0.3336169]
[1743392794395,0.30637151,600.55,599.49,0.3336169]
[1743392794596,0.30637151,600.54,599.49,0.3336169]
[1743392794797,0.30637151,600.53,599.49,0.3336169]
[1743392795097,0.30637151,600.52,599.49,0.3336169]
[1743392795394,2.81117194,600.59,599.49,0.3336169]
[1743392795594,0.30643295,600.58,599.49,0.3336169]
[1743392795792,0.30643295,600.57,599.49,0.3336169]
[1743392795997,0.30643295,600.56,599.49,0.3336169]
[1743392796198,0.639461,600.55,599.49,0.3336169]
[1743392796497,0.30643295,600.54,599.49,0.3336169]
[1743392796697,0.30643295,600.53,599.49,0.3336169]
[1743392796897,0.30643295,600.54,599.49,0.3336169]
[1743392797194,0.30643295,600.53,599.49,0.3336169]
[1743392797492,0.30643295,600.54,599.49,0.3336169]
[1743392797699,0.30643295,600.53,599.49,0.3336169]
[1743392797899,0.30643295,600.54,599.49,0.3336169]
[1743392798092,0.30643295,600.53,599.49,0.3336169]
[1743392798293,0.29028424,600.52,599.49,0.3336169]
[1743392798693,0.30643295,600.51,599.49,0.3336169]
[1743392800496,0.30643295,600.54,599.49,0.3336169]
[1743392801401,0.29031693,600.53,599.49,0.3336169]
[1743392801603,0.30643295,600.52,599.49,0.3336169]
[1743392803407,0.30643295,600.54,599.49,0.3336169]
[1743392803605,0.30643295,600.53,599.49,0.3336169]
[1743392803800,0.30643295,600.52,599.49,0.3336169]
[1743392804008,0.30643295,600.54,599.49,0.3336169]
[1743392804209,0.804,600.51,599.49,0.3336169]
[1743392804507,0.30643295,600.5,599.49,0.3336169]
[1743392807509,0.29029029,600.49,599.49,0.3336169]
[1743392807709,0.30643295,600.48,599.49,0.3336169]
[1743392809113,0.30638928,600.47,599.49,0.3336169]
[1743392809408,0.30638928,600.46,599.49,0.3336169]
[1743392809619,0.30638928,600.48,599.49,0.3336169]
[1743392809807,0.30638928,600.47,599.49,0.3336169]
[1743392810007,0.30638928,600.46,599.49,0.3336169]
[1743392810207,0.29029029,600.49,599.49,0.3336169]
[1743392810406,0.30639291,600.48,599.49,0.3336169]
[1743392812309,0.30639291,600.5,599.49,0.3336169]
[1743392812509,0.30639291,600.49,599.49,0.3336169]
[1743392812710,0.30639291,600.48,599.49,0.3336169]
[1743392812908,0.30639291,600.5,599.49,0.3336169]
[1743392813214,0.29026729,600.47,599.49,0.3336169]
[1743392813414,0.30639291,600.46,599.49,0.3336169]
[1743392815310,0.30639291,600.5,599.49,0.3336169]
[1743392815611,0.29029634,600.45,599.49,0.3336169]
[1743392815810,0.30644229,600.44,599.49,0.3336169]
[1743392818319,0.30644229,600.5,599.49,0.3336169]
[1743392818623,0.30644229,600.49,599.49,0.3336169]
[1743392818814,0.30644229,600.5,599.49,0.3336169]
[1743392819415,0.29028182,600.49,599.49,0.3336169]
[1743392819614,0.30644229,600.48,599.49,0.3336169]
[1743392821414,0.30644229,600.5,599.49,0.3336169]
[1743392821616,0.804,600.51,599.49,0.3336169]
[1743392821617,0.2901862,600.47,599.49,0.3336169]
[1743392821815,0.30644229,600.46,599.49,0.3336169]
[1743392823917,0.30644229,600.45,599.49,0.3336169]
[1743392824109,0.2901862,600.47,599.49,0.3336169]
[1743392824110,0.30644229,600.44,599.49,0.3336169]
[1743392824314,0.30644229,600.5,599.49,0.3336169]
[1743392824510,0.29018862,600.44,599.49,0.3336169]
[1743392824710,0.30644229,600.43,599.49,0.3336169]
[1743392827416,0.30644229,600.42,599.49,0.3336169]
[1743392827614,0.30644229,600.49,599.49,0.3336169]
[1743392827819,0.30644229,600.48,599.49,0.3336169]
[1743392828118,0.30644229,600.47,599.49,0.3336169]
[1743392828315,0.30644229,600.46,599.49,0.3336169]
[1743392828519,0.30644229,600.45,599.49,0.3336169]
[1743392828715,0.30644229,600.46,599.49,0.3336169]
[1743392830320,0.30644229,600.5,599.49,0.3336169]
[1743392830520,0.29018862,600.45,599.49,0.3336169]
[1743392830715,0.30644229,600.44,599.49,0.3336169]
[1743392831323,0.29018862,600.45,599.49,0.3336169]
[1743392831521,0.30647067,600.44,599.49,0.3336169]
[1743392833219,0.30647067,600.54,599.49,0.3336169]
[1743392833420,0.30647067,600.43,599.49,0.3336169]
[1743392833617,0.33302805,600.55,599.49,0.3336169]
[1743392833618,0.30647067,600.42,599.49,0.3336169]
[1743392833923,0.30647067,600.41,599.05,0.29023219]
[1743392834222,0.30647067,600.41,599.06,0.33385637]
[1743392834422,0.59671133,600.41,599.06,0.33385637]
[1743392834618,0.30647067,600.4,599.06,0.33385637]
[1743392835224,0.3331168,600.39,599.06,0.33385637]
[1743392835424,0.30647067,600.38,599.06,0.33385637]
[1743392835724,0.63970554,600.37,599.06,0.33385637]
[1743392835926,0.63971109,600.36,599.06,0.33385637]
[1743392836125,0.63971664,600.35,599.06,0.33385637]
[1743392836424,0.63972219,600.34,599.06,0.33385637]
[1743392836625,0.63972774,600.33,599.06,0.33385637]
[1743392836826,0.63973329,600.32,599.06,0.33385637]
[1743392837021,0.3331612,600.31,599.06,0.33385637]
[1743392837226,0.30658536,600.3,599.06,0.33385637]
[1743392838334,0.3331723,600.29,599.06,0.33385637]
[1743392838535,0.30658536,600.28,599.06,0.33385637]
[1743392839538,0.2903242,600.27,599.06,0.33385637]
[1743392839735,0.30658536,600.26,599.06,0.33385637]
[1743392840535,0.2903242,600.27,599.06,0.33385637]
[1743392840738,0.30658593,600.26,599.06,0.33385637]
[1743392841737,0.2903242,600.27,599.06,0.33385637]
[1743392842135,0.3331723,600.29,599.06,0.33385637]
[1743392842738,0.30650121,600.28,599.06,0.33385637]
[1743392843640,0.29044535,600.27,599.06,0.33385637]
[1743392843841,0.30650121,600.26,599.06,0.33385637]
[1743392844541,0.30653535,600.25,599.06,0.33385637]
[1743392844740,0.30653535,600.26,599.06,0.33385637]
[1743392845342,0.30653535,600.28,599.06,0.33385637]
[1743392845541,0.30653535,600.27,599.06,0.33385637]
[1743392845738,0.30653535,600.26,599.06,0.33385637]
[1743392845941,0.30653535,600.25,599.06,0.33385637]
[1743392846142,0.30653535,600.28,599.06,0.33385637]
[1743392846338,0.30653535,600.27,599.06,0.33385637]
[1743392846539,0.29040051,600.24,599.06,0.33385637]
[1743392846738,0.30653535,600.23,599.06,0.33385637]
[1743392851339,0.30653535,600.28,599.06,0.33385637]
[1743392851536,0.63971875,600.27,599.06,0.33385637]
[1743392851740,0.6397243,600.26,599.06,0.33385637]
[1743392851939,0.30653535,600.25,599.06,0.33385637]
[1743392852647,0.33320005,600.24,599.06,0.33385637]
[1743392852839,0.30653535,600.23,599.06,0.33385637]
[1743392854643,0.33321115,600.22,599.06,0.33385637]
[1743392854846,0.30653535,600.21,599.06,0.33385637]
[1743392855247,0.33322225,600.2,599.06,0.33385637]
[1743392855541,0.30653535,600.19,599.06,0.33385637]
[1743392855746,0.33323336,600.18,599.06,0.33385637]
[1743392855947,0.30653535,600.17,599.06,0.33385637]
[1743392856147,0.33324446,600.16,599.06,0.33385637]
[1743392856445,0.30653535,600.15,599.06,0.33385637]
[1743392856846,0.33325557,600.14,599.06,0.33385637]
[1743392857246,0.30669513,600.13,599.06,0.33385637]
[1743392857548,0.59715987,600.13,599.06,0.33385637]
[1743392857848,0.30669513,600.12,599.06,0.33385637]
[1743392860346,0.29037628,600.11,599.06,0.33385637]
[1743392860746,0.30669513,600.1,599.06,0.33385637]
[1743392863447,0.30669513,600.13,599.06,0.33385637]
[1743392864051,0.33326667,600.12,599.06,0.33385637]
[1743392864250,0.30669513,600.11,599.06,0.33385637]
[1743392864750,0.33327778,600.1,599.06,0.33385637]
[1743392864950,0.30669513,600.09,597.69,2.53489445]
[1743392865149,0.33328889,600.08,597.81,0.33455445]
[1743392865346,0.30669513,600.07,597.82,0.28930252]
[1743392865650,0.3333,600.06,597.93,0.33448731]
[1743392865851,0.30669513,600.05,597.94,0.28930252]
[1743392866146,0.30669513,600.05,598.04,0.33442579]
[1743392866351,0.33331111,600.04,598.05,0.28930252]
[1743392866553,0.30669513,600.03,598.07,0.33440901]
[1743392866755,0.33332222,600.02,598.08,0.28930252]
[1743392867053,0.30669513,600.01,598.1,0.33439224]
[1743392867253,0.30669513,600.01,598.11,0.28930252]
[1743392867654,0.33333333,600.0,598.13,0.33437547]
[1743392868155,0.3067189,599.99,598.14,0.28931257]
[1743392868353,0.3067189,599.99,598.16,0.3343587]
[1743392868547,0.3067189,599.99,598.17,0.28931257]
[1743392868955,0.3067189,599.99,598.19,0.33434193]
[1743392869155,0.3067189,599.99,598.2,0.28931257]
[1743392869352,0.3067189,599.99,598.22,0.33432516]
[1743392869553,0.62386011,599.98,598.23,0.28931257]
[1743392869854,0.62386011,599.98,598.25,0.33430839]
[1743392869855,0.3067189,599.97,598.25,0.33430839]
[1743392870056,0.33335555,599.96,598.26,0.28931257]
[1743392870251,0.3067189,599.95,598.28,0.33429163]
[1743392870558,0.33336667,599.94,598.29,0.28931257]
[1743392870855,0.3067189,599.93,598.31,0.33427487]
[1743392871052,0.64009112,599.93,598.32,0.28931257]
[1743392871251,0.3067189,599.92,598.34,0.33425811]
[1743392871451,0.3067189,599.92,598.35,0.28931257]
[1743392871656,0.3067189,599.92,598.37,0.33424135]
[1743392871851,0.64014667,599.91,598.38,0.28935668]
[1743392872051,0.64015222,599.9,598.4,0.33422459]
[1743392872255,0.30676333,599.89,598.41,0.28935668]
[1743392872455,0.30676333,599.89,598.42,0.33421342]
[1743392873455,0.29064548,599.88,598.42,0.33421342]
[1743392873659,0.30676333,599.87,598.42,0.33421342]
[1743392873860,0.30676333,599.87,598.43,0.28935119]
[1743392874062,0.30676333,599.87,598.45,0.33419667]
[1743392874359,0.30676333,599.87,598.46,0.28935119]
[1743392875262,0.30676333,599.87,598.47,0.3341855]
[1743392875557,0.30676333,599.89,598.48,0.28935119]
[1743392875861,0.30676333,599.88,598.49,0.33417433]
[1743392876058,0.30676333,599.89,598.49,0.33417433]
[1743392876260,0.29049748,599.87,598.49,0.33417433]
[1743392876460,0.30676333,599.86,598.49,0.33417433]
[1743392878369,0.30676333,599.89,598.5,0.28932875]
[1743392878566,0.29050233,599.85,598.5,0.28932875]
[1743392878863,0.30676333,599.84,598.5,0.28932875]
[1743392879067,0.29050233,599.85,598.49,0.33417433]
[1743392879269,0.30668592,599.84,598.5,0.28927994]
[1743392879471,0.30668592,599.84,598.52,0.33415758]
[1743392879663,0.30668592,599.84,598.53,0.28927994]
[1743392879866,0.30668592,599.84,598.55,0.33414084]
[1743392880068,0.30668592,599.84,598.56,0.28927994]
[1743392880266,0.30668592,599.84,598.58,0.33412409]
[1743392880463,0.30668592,599.84,598.59,0.28927994]
[1743392880770,0.29050233,599.85,598.61,0.33410734]
[1743392880970,0.634,600.42,598.61,0.33410734]
[1743392881169,0.29036901,599.97,598.61,0.33410734]
[1743392881474,0.634,600.42,598.62,0.2891018]
[1743392881676,0.634,600.42,598.64,0.3340906]
[1743392882066,0.634,600.42,598.65,0.28908726]
[1743392882265,0.29029634,600.41,598.67,0.33407386]
[1743392882671,0.29029634,600.41,598.68,0.28909419]
[1743392883772,0.29029634,600.41,598.7,0.33405712]
[1743392884169,0.634,600.42,598.7,0.33405712]
[1743392884767,0.30650131,600.41,598.71,0.28909692]
[1743392884966,0.30650131,600.41,598.73,0.33404038]
[1743392885372,0.29029029,600.4,598.73,0.33404038]
[1743392885572,0.30650131,600.39,598.73,0.33404038]
[1743392885766,0.30650131,600.39,598.74,0.28909692]
[1743392885969,0.30650131,600.39,598.76,0.33402364]
[1743392886167,0.30650131,600.39,598.77,0.28909692]
[1743392887167,0.30650131,600.39,598.79,0.33400691]
[1743392887367,0.30650131,600.41,598.8,0.28909692]
[1743392887773,0.30645954,600.4,598.81,0.28905543]
[1743392887973,0.30645954,600.39,598.82,0.28905543]
[1743392888173,0.30645954,600.41,598.8,0.28905543]
[1743392888374,0.29025639,600.39,598.82,0.33399018]
[1743392888574,0.30645954,600.38,598.83,0.28905543]
[1743392889081,0.30645954,600.38,598.85,0.33397344]
[1743392889274,0.30645954,600.38,598.86,0.28905543]
[1743392889473,0.30645954,600.38,598.88,0.33395671]
[1743392889674,0.30645954,600.38,598.89,0.28905543]
[1743392889874,0.30645954,600.38,598.91,0.33393999]
[1743392890082,0.30645954,600.38,598.92,0.28905543]
[1743392890269,0.30645954,600.41,598.94,0.33392326]
[1743392890469,0.29024308,600.37,598.95,0.28905543]
[1743392890775,0.30645954,600.36,598.97,0.33390653]
[1743392890971,0.30645954,600.36,598.98,0.28905543]
[1743392891476,0.29024308,600.37,598.97,0.33390653]
[1743392895179,0.61,600.36,598.97,0.33390653]
[1743392897683,0.29049384,600.35,598.97,0.33390653]
[1743392899089,0.61,600.36,598.97,0.33390653]
[1743392899679,0.30649235,600.35,598.97,0.33390653]
[1743392900583,0.29049505,600.34,598.97,0.33390653]
[1743392900784,0.30649235,600.33,598.97,0.33390653]
[1743392901481,0.30649235,600.33,598.98,0.28910326]
[1743392901681,0.30649235,600.33,598.99,0.33389539]
[1743392901885,0.30649235,600.33,599.0,0.28910326]
[1743392902086,0.30649235,600.33,599.01,0.33388424]
[1743392902487,0.30649235,600.35,599.01,0.33388424]
[1743392902684,0.30649235,600.34,599.01,0.33388424]
[1743392903387,0.29045383,600.33,599.01,0.33388424]
[1743392903586,0.30649235,600.32,599.01,0.33388424]
[1743392905585,0.30649235,600.34,599.01,0.33388424]
[1743392906391,0.29043202,600.33,599.01,0.33388424]
[1743392906588,0.30649235,600.32,599.01,0.33388424]
[1743392908386,0.30649235,600.34,599.01,0.33388424]
[1743392908586,0.30649235,600.33,599.01,0.33388424]
[1743392908788,0.30649235,600.34,599.01,0.33388424]
[1743392909487,0.29043081,600.33,599.01,0.33388424]
[1743392909689,0.30649235,600.32,599.01,0.33388424]
[1743392910092,0.3331612,600.31,599.01,0.33388424]
[1743392910293,0.30649235,600.3,599.01,0.33388424]
[1743392911699,0.3331723,600.29,599.01,0.33388424]
[1743392911896,0.30649235,600.28,599.01,0.33388424]
[1743392912103,0.3331834,600.27,599.01,0.33388424]
[1743392912298,0.30649235,600.26,599.01,0.33388424]
[1743392912795,0.3331945,600.25,599.01,0.33388424]
[1743392913000,0.3066741,600.24,599.01,0.33388424]
[1743392913197,0.3066741,600.24,598.62,0.29040051]
[1743392913407,0.3066741,600.23,598.63,0.62341905]
[1743392913605,0.3331945,600.25,598.62,0.29040051]
[1743392913606,0.3066741,600.22,598.64,0.62341347]
[1743392913898,0.3066741,600.21,598.64,0.3340906]
[1743392914106,0.33322781,600.19,598.64,0.3340906]
[1743392914308,2.52093128,600.16,598.64,0.3340906]
[1743392914500,0.3066741,600.15,598.64,0.3340906]
[1743392914698,0.3066741,600.14,598.64,0.3340906]
[1743392914902,0.3066741,600.13,598.64,0.3340906]
[1743392915201,0.63994077,600.12,598.64,0.3340906]
[1743392915403,0.3066741,600.11,598.64,0.3340906]
[1743392915704,0.3066741,600.1,598.64,0.3340906]
[1743392915905,0.3066741,600.09,598.64,0.3340906]
[1743392916105,0.3066741,600.08,598.64,0.3340906]
[1743392916299,0.3066741,600.07,598.64,0.3340906]
[1743392916500,0.3066741,600.11,598.62,0.29040051]
[1743392916699,0.3066741,600.14,597.62,2.53489445]
[1743392917006,0.3066741,600.13,597.63,0.28935686]
[1743392917202,0.3066741,600.14,597.64,0.28935686]
[1743392917401,0.3066741,600.13,597.65,0.28935686]
[1743392917607,0.3066741,600.3,597.66,0.28935686]
[1743392917804,0.3066741,600.12,597.66,0.28935686]
[1743392918009,0.3066741,600.11,597.67,0.28935686]
[1743392918308,0.3066741,600.3,597.68,0.28935686]
[1743392918508,0.3066741,600.29,597.69,0.28935686]
[1743392918803,0.3066741,600.28,597.7,0.28935686]
[1743392919008,0.3066741,600.32,597.71,0.28935686]
[1743392919208,0.3066741,600.31,597.72,0.28935686]
[1743392919509,0.3066741,600.3,597.73,0.28935686]
[1743392919710,0.3066741,600.29,597.74,0.28935686]
[1743392919909,0.3066741,600.28,597.75,0.28935686]
[1743392920208,0.3066741,600.27,597.76,0.28935686]
[1743392920507,0.3066741,600.26,597.77,0.28935686]
[1743392920716,0.3066741,600.32,597.65,0.28935686]
[1743392921008,0.3066741,600.31,597.66,0.28935686]
[1743392921203,0.3066741,600.35,597.65,0.28935686]
[1743392921405,0.3066741,600.34,597.66,0.28935686]
[1743392921606,0.3066741,600.35,597.65,0.28935686]
[1743392921812,0.29061271,600.34,597.65,0.28935686]
[1743392922011,0.3066741,600.33,597.65,0.28935686]
[1743392923308,0.3066741,600.35,596.47,0.28935686]
[1743392923513,0.29066732,600.32,597.64,0.29066732]
[1743392923814,0.3066741,600.31,597.65,0.28935686]
[1743392924013,0.3066741,600.31,591.2,0.6117428]
[1743392924014,0.3066741,600.31,596.53,2.53489445]
[1743392924210,0.3066741,600.31,596.54,0.28935686]
[1743392924409,0.3066741,600.31,596.55,0.28935686]
[1743392924611,0.3066741,600.31,596.56,0.28935686]
[1743392924916,0.3066741,600.31,596.61,2.53489445]
[1743392925111,0.3066741,600.31,596.62,0.28935686]
[1743392925309,0.3066741,600.31,596.63,0.28935686]
[1743392925512,0.3066741,600.31,596.64,0.28935686]
[1743392925709,0.3066741,600.31,596.65,0.28935686]
[1743392925915,0.3066741,600.31,596.66,0.28935686]
[1743392926107,0.3066741,600.31,596.67,0.28935686]
[1743392926311,0.3066741,600.35,596.68,0.28935686]
[1743392926509,0.29070253,600.3,596.69,0.28935686]
[1743392926710,0.3066741,600.29,596.76,2.53489445]
[1743392926913,0.3066741,600.29,596.77,0.28935686]
[1743392927114,0.3066741,600.29,596.78,0.28935686]
[1743392927313,0.3066741,600.29,596.79,0.28935686]
[1743392927615,0.3066741,600.29,596.8,0.28935686]
[1743392927816,0.3066741,600.29,596.81,0.28935686]
[1743392928111,0.3066741,600.29,596.82,0.28935686]
[1743392928321,0.30677709,600.28,596.83,0.28937027]
[1743392928514,0.30677709,600.29,596.84,0.28937027]
[1743392928707,0.30677709,600.29,596.85,0.28937027]
[1743392928912,0.30677709,600.29,596.86,0.28937027]
[1743392929110,0.30677709,600.29,596.87,0.28937027]
[1743392929312,0.30677709,600.28,596.88,0.28937027]
[1743392929613,0.30677709,600.27,596.89,0.28937027]
[1743392929816,0.30677709,600.26,596.9,0.28937027]
[1743392930015,0.30677709,600.25,596.91,0.28937027]
[1743392930210,0.30677709,600.24,597.03,2.53489445]
[1743392930515,0.29067704,600.28,597.03,2.53489445]
[1743392930713,0.30677878,600.27,597.04,0.28937195]
[1743392930909,0.30677878,600.26,597.05,0.28937195]
[1743392931110,0.30677878,600.25,597.06,0.28937195]
[1743392931615,0.30677878,600.24,597.07,0.28937195]
[1743392931816,0.30677878,600.23,597.08,0.28937195]
[1743392932015,0.30677878,600.22,597.09,0.28937195]
[1743392932215,0.30677878,600.21,597.1,0.28937195]
[1743392932415,0.29066611,600.21,597.01,2.53489445]
[1743392932610,0.30679775,600.2,597.02,0.28939084]
[1743392932812,0.30679775,600.19,597.03,0.28939084]
[1743392933012,0.30679775,600.18,597.04,0.28939084]
[1743392933216,0.30679775,600.17,597.05,0.28939084]
[1743392933515,0.30679775,600.16,597.06,0.28939084]
[1743392933716,0.30679775,600.2,597.07,0.28939084]
[1743392933910,0.30679775,600.19,597.08,0.28939084]
[1743392934113,0.30679775,600.18,597.09,0.28939084]
[1743392934312,0.30679775,600.2,597.1,0.28939084]
[1743392934617,0.30679775,600.2,597.11,0.28939084]
[1743392934816,0.30679775,600.2,597.12,0.28939084]
[1743392935011,0.30679775,600.2,597.13,0.28939084]
[1743392935214,0.30679775,600.2,596.98,2.53489445]
[1743392935215,0.30679775,600.2,597.31,2.53489445]
[1743392935513,0.30679775,600.19,597.32,0.28939084]
[1743392935715,0.30679775,600.18,597.33,0.28939084]
[1743392935915,0.30679775,600.18,597.34,0.28939084]
[1743392936113,0.30679775,600.18,597.35,0.28939084]
[1743392936312,0.30679775,600.18,597.36,0.28939084]
[1743392936515,0.30679775,600.18,597.37,0.28939084]
[1743392936714,0.30679775,600.18,597.38,0.28939084]
[1743392936912,0.30679775,600.18,597.39,0.28939084]
[1743392937112,0.30679775,600.18,597.4,0.28939084]
[1743392937314,0.30679775,600.18,597.41,0.28939084]
[1743392937512,0.30679775,600.18,597.42,0.28939084]
[1743392937716,0.29057146,600.19,597.06,2.53489445]
[1743392937916,0.30659916,600.18,597.07,0.28919389]
[1743392938113,0.30659916,600.18,597.08,0.28919389]
[1743392938314,0.30659916,601.12,597.09,0.28919389]
[1743392938519,0.29057874,600.17,597.16,2.53489445]
[1743392938719,0.30659916,600.16,597.17,0.28919389]
[1743392938920,0.30659916,600.16,597.18,0.28919389]
[1743392939119,0.30659916,601.09,597.19,0.28919389]
[1743392939313,0.30659916,601.08,597.2,0.28919389]
[1743392939518,0.29045626,600.15,597.2,0.28919389]
[1743392939719,0.30659916,600.14,597.21,0.28919389]
[1743392939915,0.30659916,600.14,597.22,0.28919389]
[1743392940122,0.29045868,600.14,597.23,0.28919389]
[1743392940322,0.30659916,600.13,597.24,0.28919389]